[Event "Baltic Zonal III Stage 2018"]
[Site "Liepaja"]
[Date "2018.07.15"]
[Round "9"]
[White "Bernotas, Arturs"]
[Black "Kantans, Toms"]
[Result "1-0"]
[ECO "B38"]
[WhiteElo "2413"]
[BlackElo "2529"]
[Annotator "RC"]
[PlyCount "119"]
[EventDate "2018.07.09"]
[EventType "swiss"]
[EventCountry "LAT"]
[SourceTitle "playchess.com"]
[Source "ChessBase"]
[SourceQuality "1"]
[TimeControl "5400+30"]

1. e4 {[%emt 0:02:38]} c5 {[%emt 0:00:00]} 2. Nf3 {[%emt 0:00:12]} g6 {[%emt 0:00:00]} 3. c4 {[%emt 0:00:48]} Bg7 {[%emt 0:00:37]} 4. d4 {[%emt 0:00:38]} cxd4 {[%emt 0:04:09]} 5. Nxd4 {[%emt 0:00:11]} Nc6 {[%emt 0:00:52]} 6. Be3 {[%emt 0:00:35]} Nf6 {[%emt 0:00:40]} 7. Nc3 {[%emt 0:00:18]} d6 {[%emt 0:00:13]} 8. Be2 {[%emt 0:00:33]} O-O {[%emt 0:01:02]} 9. O-O {[%emt 0:00:27]} Bd7 {[%emt 0:01:19]} 10. h3 {[%emt 0:01:17]} Nxd4 {[%emt 0:00:39]} 11. Bxd4 {[%emt 0:00:17]} Bc6 {[%emt 0:00:04]} 12. Qc2 {[%emt 0:00:18]} a5 {[%emt 0:03:27]} 13. Rad1 {[%emt 0:03:58]} Qc7 {[%emt 0:00:09]} 14. b3 {[%emt 0:01:21]} Nd7 {[%emt 0:15:52]} 15. Qd2 {[%emt 0:16:17]} Bxd4 {[%emt 0:12:20]} 16. Qxd4 {[%emt 0:00:24]} Qb6 {[%emt 0:00:10]} 17. Qxb6 {[%emt 0:07:51]} Nxb6 {[%emt 0:00:41]} 18. f4 {[%emt 0:00:13]} Kg7 {[%emt 0:15:16]} 19. Rd4 {[%emt 0:08:01]} Rfc8 {[%emt 0:05:03]} 20. Rfd1 {[%emt 0:16:46]} Rc7 {[%emt 0:04:15]} 21. a3 {[%emt 0:08:34]} Nd7 {[%emt 0:05:02]} 22. Rb1 {[%emt 0:07:00]} Nc5 {[%emt 0:13:40]} 23. g3 {[%emt 0:00:51]} e5 {[%emt 0:02:38]} 24. Rxd6 {[%emt 0:01:41]} exf4 {[%emt 0:00:59]} 25. gxf4 {[%emt 0:03:43]} Nxe4 {[%emt 0:00:04]} 26. Rxc6 {[%emt 0:01:45]} Nxc3 {[%emt 0:00:59]} 27. Rxc7 {[%emt 0:00:07]} Nxb1 {[%emt 0:00:03]} 28. Rxb7 {[%emt 0:02:26]} a4 {[%emt 0:03:06]} 29. c5 {[%emt 0:07:32]} Nxa3 {[%emt 0:01:19]} 30. bxa4 {[%emt 0:01:24]} Rxa4 {[%emt 0:04:17]} 31. c6 {[%emt 0:00:38]} Nc4 {[%emt 0:00:03]} 32. c7 {[%emt 0:01:45]} Nd6 {[%emt 0:01:02]} 33. Rb6 {[%emt 0:00:25]} Ra7 {[%emt 0:00:03]} 34. Rxd6 {[%emt 0:00:16]} Rxc7 {[%emt 0:00:04]} 35. Kf2 {[%emt 0:00:23]} Ra7 {[%emt 0:00:17]} 36. Bf3 {[%emt 0:00:28]} Ra2+ {[%emt 0:00:47]} 37. Kg3 {[%emt 0:00:09]} Ra3 {[%emt 0:00:11]} 38. Rd7 {[%emt 0:00:22]} Kf6 {[%emt 0:01:00]} 39. Rb7 {[%emt 0:00:24]} Rc3 {[%emt 0:00:29]} 40. Rb6+ {[%emt 0:02:38]} Kg7 {[%emt 0:00:02]} 41. h4 {[%emt 0:00:42]} Ra3 {[%emt 0:00:07]} 42. f5 {[%emt 0:01:00]} gxf5 {[%emt 0:00:48]} 43. Kf4 {[%emt 0:00:18]} Ra4+ {[%emt 0:00:26]} 44. Kg5 {[%emt 0:00:17]} Rd4 {[%emt 0:04:46]} 45. Rb7 {[%emt 0:00:43]} Rd3 {[%emt 0:02:37]} 46. Bh5 {[%emt 0:00:40]} h6+ {[%emt 0:00:17]} 47. Kxf5 {[%emt 0:01:22]} Rd5+ {[%emt 0:00:17]} 48. Kg4 {[%emt 0:00:05]} Rd4+ {[%emt 0:00:04]} 49. Kg3 {[%emt 0:00:11]} Rd3+ {[%emt 0:00:04]} 50. Kf2 {[%emt 0:00:35]} Rd5 {[%emt 0:02:02]} 51. Rxf7+ {[%emt 0:01:05]} Kg8 {[%emt 0:00:00]} 52. Bg6 {[%emt 0:00:19]} Rd6 {[%emt 0:00:06]} 53. h5 {[%emt 0:00:11]} Rd5 {[%emt 0:00:37]} 54. Ra7 {[%emt 0:00:18]} Rb5 {[%emt 0:01:01]} 55. Ke3 {[%emt 0:00:10]} Rc5 {[%emt 0:00:13]} 56. Kf4 {[%emt 0:00:18]} Rg5 {[%emt 0:01:10]} 57. Bf5 {[%emt 0:01:30]} Rxh5 {[%emt 0:00:30]} 58. Ke5 {[%emt 0:00:06]} Rg5 {[%emt 0:00:31]} 59. Kf6 {[%emt 0:00:12]} Kh8 {[%emt 0:00:15]} 60. Bg6 {[%emt 0:00:13]} 1-0

[Event "Baltic Zonal III Stage 2018"]
[Site "Liepaja"]
[Date "2018.07.15"]
[Round "9"]
[White "Sirosh, Ilja"]
[Black "Berzinsh, Roland"]
[Result "1-0"]
[ECO "A30"]
[WhiteElo "2339"]
[BlackElo "2410"]
[Annotator "NA"]
[PlyCount "76"]
[EventDate "2018.07.09"]
[EventType "swiss"]
[EventCountry "LAT"]
[SourceTitle "playchess.com"]
[Source "ChessBase"]
[SourceQuality "1"]
[TimeControl "5400+30"]

1. c4 {[%emt 0:00:00]} c5 {[%emt 0:00:24]} 2. Nf3 {[%emt 0:00:00]} Nf6 {[%emt 0:00:25]} 3. Nc3 {[%emt 0:00:03]} e6 {[%emt 0:00:28]} 4. g3 {[%emt 0:00:20]} b6 {[%emt 0:00:22]} 5. Bg2 {[%emt 0:00:07]} Bb7 {[%emt 0:00:06]} 6. O-O {[%emt 0:00:08]} Be7 {[%emt 0:00:06]} 7. Re1 {[%emt 0:00:35]} d5 {[%emt 0:00:32]} 8. cxd5 {[%emt 0:00:29]} Nxd5 {[%emt 0:00:14]} 9. Nxd5 {[%emt 0:04:56]} Bxd5 {[%emt 0:08:48]} 10. e4 {[%emt 0:19:10]} Bb7 {[%emt 0:00:22]} 11. d4 {[%emt 0:00:14]} cxd4 {[%emt 0:00:13]} 12. Nxd4 {[%emt 0:11:06]} O-O {[%emt 0:02:13]} 13. Be3 {[%emt 0:11:40]} Nd7 {[%emt 0:05:05]} 14. Rc1 {[%emt 0:03:46]} Bb4 {[%emt 0:16:52]} 15. Re2 {[%emt 0:03:41]} Nf6 {[%emt 0:00:14]} 16. a3 {[%emt 0:03:00]} Be7 {[%emt 0:00:40]} 17. Rd2 {[%emt 0:03:05]} Qe8 {[%emt 0:01:47]} 18. f3 {[%emt 0:01:22]} Rc8 {[%emt 0:01:07]} 19. Bf1 {[%emt 0:01:48]} Rxc1 {[%emt 0:03:51]} 20. Qxc1 {[%emt 0:00:02]} Qa8 {[%emt 0:00:07]} 21. Rc2 {[%emt 0:04:05]} Rd8 {[%emt 0:02:10]} 22. Nb5 {[%emt 0:18:20]} Ne8 {[%emt 0:18:34]} 23. b4 {[%emt 0:01:52]} Bf6 {[%emt 0:03:46]} 24. a4 {[%emt 0:02:59]} Be5 {[%emt 0:06:40]} 25. a5 {[%emt 0:02:43]} a6 {[%emt 0:00:06]} 26. Bxb6 {[%emt 0:01:04]} axb5 {[%emt 0:01:15]} 27. Bxd8 {[%emt 0:00:02]} Qxd8 {[%emt 0:00:14]} 28. Rd2 {[%emt 0:01:01]} Qg5 {[%emt 0:03:00]} 29. Rd1 {[%emt 0:02:57]} Qxc1 {[%emt 0:22:23]} 30. Rxc1 {[%emt 0:00:01]} Nd6 {[%emt 0:00:01]} 31. Rc7 {[%emt 0:01:31]} f5 {[%emt 0:02:27]} 32. exf5 {[%emt 0:01:34]} Bxf3 {[%emt 0:00:19]} 33. Bg2 {[%emt 0:00:06]} Bd4+ {[%emt 0:00:43]} 34. Kh1 {[%emt 0:00:01]} Bxg2+ {[%emt 0:00:50]} 35. Kxg2 {[%emt 0:00:01]} Nxf5 {[%emt 0:00:17]} 36. Kf3 {[%emt 0:01:51]} Nd6 {[%emt 0:00:36]} 37. a6 {[%emt 0:01:03]} e5 {[%emt 0:00:33]} 38. a7 {[%emt 0:00:36]} e4+ {[%emt 0:00:04] Kxe4} 1-0

[Event "Baltic Zonal III Stage 2018"]
[Site "Liepaja"]
[Date "2018.07.15"]
[Round "9"]
[White "Rogule, Laura"]
[Black "Meskovs, Nikita"]
[Result "0-1"]
[ECO "C49"]
[WhiteElo "2320"]
[BlackElo "2540"]
[Annotator "ChessBase"]
[PlyCount "86"]
[EventDate "2018.07.09"]
[EventType "swiss"]
[EventCountry "LAT"]
[SourceTitle "playchess.com"]
[Source "ChessBase"]
[SourceQuality "1"]
[TimeControl "5400+30"]

1. e4 {[%emt 0:00:00]} e5 {[%emt 0:00:29]} 2. Nf3 {[%emt 0:00:00]} Nc6 {[%emt 0:00:16]} 3. Nc3 {[%emt 0:02:44]} Nf6 {[%emt 0:00:48]} 4. Bb5 {[%emt 0:01:12]} Bb4 {[%emt 0:00:10]} 5. O-O {[%emt 0:00:14]} O-O {[%emt 0:00:05]} 6. d3 {[%emt 0:00:12]} d6 {[%emt 0:00:05]} 7. Bg5 {[%emt 0:03:28]} Ne7 {[%emt 0:00:14]} 8. Bxf6 {[%emt 0:31:16]} gxf6 {[%emt 0:00:13]} 9. Nd5 {[%emt 0:06:37]} Nxd5 {[%emt 0:00:43]} 10. exd5 {[%emt 0:00:18]} a6 {[%emt 0:07:14]} 11. Ba4 {[%emt 0:00:51]} f5 {[%emt 0:00:21]} 12. c3 {[%emt 0:01:44]} Ba5 {[%emt 0:00:06]} 13. d4 {[%emt 0:01:02]} b5 {[%emt 0:04:44]} 14. Bc2 {[%emt 0:03:38]} Re8 {[%emt 0:01:23]} 15. g3 {[%emt 0:09:27]} Qf6 {[%emt 0:05:32]} 16. Nh4 {[%emt 0:08:28]} exd4 {[%emt 0:01:54]} 17. cxd4 {[%emt 0:05:01]} Bb6 {[%emt 0:00:15]} 18. Qh5 {[%emt 0:01:45]} Bxd4 {[%emt 0:02:04]} 19. Rae1 {[%emt 0:02:27]} Bd7 {[%emt 0:04:14]} 20. b3 {[%emt 0:03:10]} c5 {[%emt 0:12:47]} 21. dxc6 {[%emt 0:03:20]} Bxc6 {[%emt 0:01:53]} 22. Nxf5 {[%emt 0:00:58]} Bb6 {[%emt 0:05:59]} 23. Re7 {[%emt 0:09:40]} Kf8 {[%emt 0:02:36]} 24. Rfe1 {[%emt 0:01:27]} Rxe7 {[%emt 0:20:04]} 25. Rxe7 {[%emt 0:00:06]} Rd8 {[%emt 0:00:03]} 26. Re1 {[%emt 0:03:13]} Bd5 {[%emt 0:03:57]} 27. Qxh7 {[%emt 0:00:30]} Rc8 {[%emt 0:00:01]} 28. Bd3 {[%emt 0:00:35]} Ba5 {[%emt 0:00:04]} 29. Rd1 {[%emt 0:00:33]} Bf3 {[%emt 0:01:32]} 30. Rb1 Rc3 {[%emt 0:06:53]} 31. Nh6 {[%emt 0:00:57]} Qg7 {[%emt 0:02:26]} 32. Qf5 {[%emt 0:00:02]} Bb7 {[%emt 0:00:05]} 33. Ng4 {[%emt 0:00:56]} Bc8 {[%emt 0:00:14]} 34. Qd5 {[%emt 0:00:33]} Qxg4 {[%emt 0:01:18]} 35. Qxd6+ {[%emt 0:00:03]} Kg8 {[%emt 0:00:04]} 36. Re1 {[%emt 0:00:33]} Be6 {[%emt 0:00:26]} 37. Qxa6 {[%emt 0:00:37]} Bb4 {[%emt 0:00:35]} 38. Bxb5 {[%emt 0:00:39]} Bc5 {[%emt 0:00:52]} 39. Qa8+ {[%emt 0:00:21]} Kg7 {[%emt 0:00:15]} 40. Be2 {[%emt 0:00:30]} Bxf2+ {[%emt 0:00:44]} 41. Kg2 {[%emt 0:00:51]} Qf5 {[%emt 0:01:19]} 42. Rd1 {[%emt 0:00:03]} Bc5 {[%emt 0:01:06]} 43. Kh1 {[%emt 0:00:48]} Rc1 {[%emt 0:00:25]} 0-1

[Event "Baltic Zonal III Stage 2018"]
[Site "Liepaja"]
[Date "2018.07.15"]
[Round "9"]
[White "Chukavin, Kirill"]
[Black "Kveinys, Aloyzas"]
[Result "0-1"]
[ECO "B19"]
[WhiteElo "2303"]
[BlackElo "2537"]
[Annotator "ChessBase"]
[PlyCount "126"]
[EventDate "2018.07.09"]
[EventType "swiss"]
[EventCountry "LAT"]
[SourceTitle "playchess.com"]
[Source "ChessBase"]
[SourceQuality "1"]
[TimeControl "5400+30"]

1. e4 {[%emt 0:00:51]} c6 {[%emt 0:00:10]} 2. d4 {[%emt 0:00:42]} d5 {[%emt 0:00:07]} 3. Nc3 {[%emt 0:00:18]} dxe4 {[%emt 0:00:56]} 4. Nxe4 {[%emt 0:00:07]} Bf5 {[%emt 0:00:36]} 5. Ng3 {[%emt 0:00:16]} Bg6 {[%emt 0:00:07]} 6. h4 {[%emt 0:00:06]} h6 {[%emt 0:00:10]} 7. Nf3 {[%emt 0:00:05]} Nd7 {[%emt 0:00:40]} 8. h5 {[%emt 0:00:33]} Bh7 {[%emt 0:00:06]} 9. Bd3 {[%emt 0:00:04]} Bxd3 {[%emt 0:00:14]} 10. Qxd3 {[%emt 0:00:06]} e6 {[%emt 0:00:09]} 11. Bd2 {[%emt 0:00:34]} Ngf6 {[%emt 0:00:15]} 12. O-O-O {[%emt 0:00:24]} Be7 {[%emt 0:00:22]} 13. Kb1 {[%emt 0:01:03]} O-O {[%emt 0:00:14]} 14. Ne4 {[%emt 0:00:37]} Nxe4 {[%emt 0:00:25]} 15. Qxe4 {[%emt 0:00:06]} Nf6 {[%emt 0:00:05]} 16. Qe2 {[%emt 0:00:34]} Qd5 {[%emt 0:00:12]} 17. Ne5 {[%emt 0:00:41]} Qe4 {[%emt 0:00:18]} 18. Qxe4 {[%emt 0:00:44]} Nxe4 {[%emt 0:00:06]} 19. Be1 {[%emt 0:01:21]} Rfd8 {[%emt 0:01:12]} 20. f3 {[%emt 0:03:39]} Nf6 {[%emt 0:05:07]} 21. Bf2 {[%emt 0:05:58]} Rac8 {[%emt 0:06:08]} 22. g4 {[%emt 0:02:42]} Nd5 {[%emt 0:03:12]} 23. Rhe1 {[%emt 0:11:50]} b5 {[%emt 0:01:07]} 24. c3 {[%emt 0:08:30]} Bd6 {[%emt 0:10:36]} 25. Nd3 {[%emt 0:02:28]} a5 {[%emt 0:00:50]} 26. Kc2 {[%emt 0:03:17]} a4 {[%emt 0:00:14]} 27. Nc5 {[%emt 0:10:42]} Bxc5 {[%emt 0:06:10]} 28. dxc5 {[%emt 0:00:10]} Re8 {[%emt 0:00:08]} 29. Bg3 {[%emt 0:02:46]} f6 {[%emt 0:00:22]} 30. Bd6 {[%emt 0:01:36]} e5 {[%emt 0:02:16]} 31. b4 {[%emt 0:01:23]} axb3+ {[%emt 0:01:00]} 32. axb3 {[%emt 0:00:32]} Ra8 {[%emt 0:00:06]} 33. Ra1 {[%emt 0:06:19]} g6 {[%emt 0:01:17]} 34. hxg6 {[%emt 0:01:27]} Kg7 {[%emt 0:00:08]} 35. c4 {[%emt 0:11:28]} bxc4 {[%emt 0:00:36]} 36. bxc4 {[%emt 0:00:05]} Nf4 {[%emt 0:00:13]} 37. Reb1 {[%emt 0:01:09]} Kxg6 {[%emt 0:00:26]} 38. Kd2 {[%emt 0:02:54]} h5 {[%emt 0:05:40]} 39. gxh5+ {[%emt 0:00:43]} Nxh5 {[%emt 0:00:10]} 40. Rxa8 {[%emt 0:02:19]} Rxa8 {[%emt 0:00:05]} 41. Rb6 {[%emt 0:00:14]} Rc8 {[%emt 0:00:05]} 42. Ke3 {[%emt 0:02:18]} Kf5 {[%emt 0:00:10]} 43. Ra6 {[%emt 0:02:22]} Nf4 {[%emt 0:00:36]} 44. Kf2 {[%emt 0:01:15]} Nd3+ {[%emt 0:02:56]} 45. Ke2 {[%emt 0:07:33]} Nb2 {[%emt 0:01:07]} 46. Ra7 {[%emt 0:01:06]} Nxc4 {[%emt 0:03:56]} 47. Be7 {[%emt 0:01:14]} Rh8 {[%emt 0:00:30]} 48. Kd3 {[%emt 0:02:25]} Rh4 {[%emt 0:01:37]} 49. Ra6 {[%emt 0:02:39]} Rd4+ {[%emt 0:07:13]} 50. Kc3 {[%emt 0:00:05]} Ne3 {[%emt 0:00:42]} 51. Bd6 {[%emt 0:01:23]} Nd5+ {[%emt 0:00:08]} 52. Kb2 {[%emt 0:00:32]} Rb4+ {[%emt 0:02:42]} 53. Ka3 {[%emt 0:01:17]} Rf4 {[%emt 0:00:29]} 54. Rxc6 {[%emt 0:00:06]} Rxf3+ {[%emt 0:00:04]} 55. Ka4 {[%emt 0:01:02]} e4 {[%emt 0:00:10]} 56. Rc8 {[%emt 0:00:11]} Ke6 {[%emt 0:06:11]} 57. Kb5 {[%emt 0:00:14]} Rb3+ {[%emt 0:00:16]} 58. Kc6 {[%emt 0:00:49]} Nb4+ {[%emt 0:00:06]} 59. Kc7 {[%emt 0:00:15]} Kd5 {[%emt 0:00:33]} 60. Rf8 {[%emt 0:00:28]} Na6+ {[%emt 0:01:58]} 61. Kd7 {[%emt 0:00:44]} Nxc5+ {[%emt 0:00:30]} 62. Bxc5 {[%emt 0:00:17]} Kxc5 {[%emt 0:00:05]} 63. Rxf6 {[%emt 0:00:17]} e3 {[%emt 0:00:08]} 0-1

[Event "Baltic Zonal III Stage 2018"]
[Site "Liepaja"]
[Date "2018.07.15"]
[Round "9"]
[White "Haavamae, Henrik"]
[Black "Klabis, Rokas"]
[Result "1-0"]
[ECO "C67"]
[WhiteElo "2185"]
[BlackElo "2347"]
[Annotator "NA"]
[PlyCount "95"]
[EventDate "2018.07.09"]
[EventType "swiss"]
[EventCountry "LAT"]
[SourceTitle "playchess.com"]
[Source "ChessBase"]
[SourceQuality "1"]
[TimeControl "5400+30"]

1. e4 {[%emt 0:01:42]} e5 {[%emt 0:00:00]} 2. Nf3 {[%emt 0:00:07]} Nc6 {[%emt 0:00:00]} 3. Bb5 {[%emt 0:00:05]} Nf6 {[%emt 0:00:11]} 4. O-O {[%emt 0:00:08]} Nxe4 {[%emt 0:00:49]} 5. Qe2 {[%emt 0:00:16]} Ng5 {[%emt 0:00:37]} 6. Nxg5 {[%emt 0:12:11]} Qxg5 {[%emt 0:00:06]} 7. d4 {[%emt 0:00:30]} Qf5 {[%emt 0:00:16]} 8. Bxc6 {[%emt 0:02:02]} dxc6 {[%emt 0:00:09]} 9. Qxe5+ {[%emt 0:00:34]} Qxe5 {[%emt 0:00:05]} 10. dxe5 {[%emt 0:00:06]} Bf5 {[%emt 0:04:29]} 11. c3 {[%emt 0:00:52]} O-O-O {[%emt 0:03:57]} 12. Nd2 {[%emt 0:03:55]} Bc5 {[%emt 0:07:56]} 13. Nb3 {[%emt 0:06:52]} Bb6 {[%emt 0:11:30]} 14. Bg5 {[%emt 0:10:31]} Rde8 {[%emt 0:06:52]} 15. Rfe1 {[%emt 0:04:04]} h6 {[%emt 0:00:50]} 16. Bd2 {[%emt 0:02:06]} Bd3 {[%emt 0:04:30]} 17. Rad1 {[%emt 0:05:21]} c5 {[%emt 0:21:21]} 18. Bf4 {[%emt 0:04:40]} c4 {[%emt 0:01:43]} 19. Nd4 {[%emt 0:04:11]} g5 {[%emt 0:02:16]} 20. Bc1 {[%emt 0:05:19]} Re7 {[%emt 0:02:27]} 21. g4 {[%emt 0:07:53]} Rhe8 {[%emt 0:10:12]} 22. Nf3 {[%emt 0:00:20]} Re6 {[%emt 0:00:48]} 23. Kg2 {[%emt 0:01:17]} f6 {[%emt 0:08:03]} 24. exf6 {[%emt 0:01:24]} Be4 {[%emt 0:00:09]} 25. f7 {[%emt 0:02:44]} Rf8 {[%emt 0:00:19]} 26. Kg1 {[%emt 0:02:10]} Rxf7 {[%emt 0:00:41]} 27. Nd4 {[%emt 0:00:12]} Bxd4 {[%emt 0:06:58]} 28. Rxd4 {[%emt 0:01:08]} Rfe7 {[%emt 0:00:03]} 29. f4 {[%emt 0:07:01]} c5 {[%emt 0:02:46]} 30. Rxc4 {[%emt 0:01:00]} b6 {[%emt 0:00:04]} 31. fxg5 {[%emt 0:01:11]} Bd3 {[%emt 0:02:04]} 32. Rxe6 {[%emt 0:00:11]} Rxe6 {[%emt 0:00:05]} 33. Rf4 {[%emt 0:00:26]} Re1+ {[%emt 0:01:12]} 34. Kg2 {[%emt 0:00:13]} Rxc1 {[%emt 0:00:19]} 35. gxh6 {[%emt 0:00:10]} Re1 {[%emt 0:01:11]} 36. Rf7 {[%emt 0:04:17]} Kd8 {[%emt 0:01:03]} 37. h7 {[%emt 0:00:16]} Re8 {[%emt 0:00:03]} 38. Rxa7 {[%emt 0:00:11]} Be4+ {[%emt 0:00:03]} 39. Kg3 {[%emt 0:00:41]} Rh8 {[%emt 0:00:03]} 40. Kf4 {[%emt 0:01:26]} Rxh7 {[%emt 0:00:22]} 41. Rxh7 {[%emt 0:00:05]} Bxh7 {[%emt 0:00:03]} 42. Kg5 {[%emt 0:01:32]} Ke7 {[%emt 0:00:04]} 43. Kh6 {[%emt 0:00:28]} Bg8 {[%emt 0:03:12]} 44. Kg7 {[%emt 0:00:08]} Bxa2 {[%emt 0:00:23]} 45. h4 {[%emt 0:00:06]} Be6 {[%emt 0:01:00]} 46. g5 {[%emt 0:00:05]} Bg4 {[%emt 0:00:03]} 47. g6 {[%emt 0:00:24]} Bh5 {[%emt 0:00:44]} 48. Kh7 {[%emt 0:00:18]} 1-0

[Event "Baltic Zonal III Stage 2018"]
[Site "Liepaja"]
[Date "2018.07.15"]
[Round "9"]
[White "Vicas, Marijus"]
[Black "Pedoson, Georg Aleksander"]
[Result "1/2-1/2"]
[ECO "C42"]
[WhiteElo "2183"]
[BlackElo "2176"]
[Annotator "NA"]
[PlyCount "114"]
[EventDate "2018.07.09"]
[EventType "swiss"]
[EventCountry "LAT"]
[SourceTitle "playchess.com"]
[Source "ChessBase"]
[SourceQuality "1"]
[TimeControl "5400+30"]

1. e4 {[%emt 0:00:04]} e5 {[%emt 0:00:00]} 2. Nf3 {[%emt 0:00:06]} Nf6 {[%emt 0:00:00]} 3. Nxe5 {[%emt 0:00:29]} d6 {[%emt 0:00:00]} 4. Nf3 {[%emt 0:00:04]} Nxe4 {[%emt 0:00:00]} 5. Nc3 {[%emt 0:00:05]} Nxc3 {[%emt 0:00:04]} 6. dxc3 {[%emt 0:00:05]} Be7 {[%emt 0:00:24]} 7. Be3 {[%emt 0:02:54]} Nc6 {[%emt 0:05:08]} 8. Qd2 {[%emt 0:00:27]} a6 {[%emt 0:01:56]} 9. O-O-O {[%emt 0:00:38]} Be6 {[%emt 0:00:15]} 10. Kb1 {[%emt 0:01:05]} Qd7 {[%emt 0:01:45]} 11. Be2 {[%emt 0:01:04]} O-O-O {[%emt 0:03:55]} 12. Nd4 {[%emt 0:06:16]} Bf6 {[%emt 0:06:42]} 13. Nxe6 {[%emt 0:03:02]} fxe6 {[%emt 0:00:50]} 14. f4 {[%emt 0:00:26]} Rhe8 {[%emt 0:02:03]} 15. g4 {[%emt 0:02:05]} g6 {[%emt 0:02:14]} 16. h4 {[%emt 0:06:40]} e5 {[%emt 0:04:10]} 17. h5 {[%emt 0:00:14]} exf4 {[%emt 0:07:16]} 18. Bxf4 {[%emt 0:00:06]} Ne5 {[%emt 0:01:11]} 19. g5 {[%emt 0:01:44]} Bg7 {[%emt 0:00:35]} 20. hxg6 {[%emt 0:07:28]} hxg6 {[%emt 0:00:06]} 21. Qd4 {[%emt 0:00:35]} Nc6 {[%emt 0:05:39]} 22. Qd3 {[%emt 0:00:51]} Be5 {[%emt 0:00:57]} 23. Bc1 {[%emt 0:01:02]} Bh8 {[%emt 0:02:20]} 24. Bf1 {[%emt 0:03:31]} Ne5 {[%emt 0:00:51]} 25. Qe4 {[%emt 0:08:51]} Qc6 {[%emt 0:05:09]} 26. Qxc6 {[%emt 0:02:53]} Nxc6 {[%emt 0:00:05]} 27. Rh6 {[%emt 0:01:27]} Ne5 {[%emt 0:01:27]} 28. Bf4 {[%emt 0:08:17]} Rg8 {[%emt 0:03:25]} 29. Bh3+ {[%emt 0:01:53]} Kb8 {[%emt 0:00:05]} 30. Be6 {[%emt 0:02:21]} Rge8 {[%emt 0:00:10]} 31. Bxe5 {[%emt 0:10:05]} dxe5 {[%emt 0:01:21]} 32. Rxd8+ {[%emt 0:00:04]} Rxd8 {[%emt 0:00:04]} 33. a3 {[%emt 0:00:04]} e4 {[%emt 0:02:52]} 34. Rxg6 {[%emt 0:00:18]} e3 {[%emt 0:00:07]} 35. Bc4 {[%emt 0:00:21]} Re8 {[%emt 0:02:12]} 36. Kc1 {[%emt 0:00:42]} Bxc3 {[%emt 0:00:54]} 37. bxc3 {[%emt 0:03:00]} e2 {[%emt 0:00:04]} 38. Bxe2 {[%emt 0:00:09]} Rxe2 {[%emt 0:00:03]} 39. Rg8+ {[%emt 0:02:08]} Ka7 {[%emt 0:00:05]} 40. g6 {[%emt 0:00:34]} Rg2 {[%emt 0:00:06]} 41. Kb2 {[%emt 0:06:05]} Kb6 {[%emt 0:01:15]} 42. Kb3 {[%emt 0:00:45]} Rg4 {[%emt 0:00:18]} 43. c4 {[%emt 0:02:33]} Rg3+ {[%emt 0:00:56]} 44. c3 {[%emt 0:03:10]} Rg2 {[%emt 0:01:31]} 45. Rg7 {[%emt 0:00:33]} Kc6 {[%emt 0:00:23]} 46. a4 {[%emt 0:01:45]} a5 {[%emt 0:02:37]} 47. Rg8 {[%emt 0:00:29]} b6 {[%emt 0:00:27]} 48. Rg7 {[%emt 0:00:13]} Kb7 {[%emt 0:01:16]} 49. Rg8 {[%emt 0:00:30]} Kc6 {[%emt 0:00:11]} 50. g7 {[%emt 0:00:37]} Kc5 {[%emt 0:00:20]} 51. Rd8 {[%emt 0:00:29]} Rxg7 {[%emt 0:00:18]} 52. Rd5+ {[%emt 0:00:07]} Kc6 {[%emt 0:00:03]} 53. Rh5 {[%emt 0:00:12]} Rg1 {[%emt 0:00:21]} 54. Rh6+ {[%emt 0:00:25]} Kc5 {[%emt 0:01:00]} 55. Rh5+ {[%emt 0:00:04]} Kc6 {[%emt 0:00:05]} 56. Rh6+ {[%emt 0:00:04]} Kc5 {[%emt 0:00:06]} 57. Rh5+ {[%emt 0:00:02]} Kc6 {[%emt 0:00:08]} 1/2-1/2